Workbook

Sheet Weltzeit-Uhr
B2: WELTZEIT-SONNENUHR | H2: Wo ist Tag, wo ist Nacht? 'Wo steht die Sonne gerade senkrecht über der Erde? Wo geht die Sonne gerade auf oder unter?
AF3: Me 04/18
B6: MEZ/MESZ: | H6: =$T$6-12/24 -> 2024-02-03T20:39:29 | I6: =$T$6-11/24 -> 2024-02-03T21:39:29 | J6: =$T$6-10/24 -> 2024-02-03T22:39:29 | K6: =$T$6-9/24 -> 2024-02-03T23:39:29 | L6: =$T$6-8/24 -> 2024-02-04T00:39:29 | M6: =$T$6-7/24 -> 2024-02-04T01:39:29 | N6: =$T$6-6/24 -> 2024-02-04T02:39:29 | O6: =$T$6-5/24 -> 2024-02-04T03:39:29 | P6: =$T$6-4/24 -> 2024-02-04T04:39:29 | Q6: =$T$6-3/24 -> 2024-02-04T05:39:29 | R6: =$T$6-2/24 -> 2024-02-04T06:39:29 | S6: =$T$6-1/24 -> 2024-02-04T07:39:29 | T6: =$B$17 -> 2024-02-04T08:39:29 | U6: =$T$6+1/24 -> 2024-02-04T09:39:29 | V6: =$T$6+2/24 -> 2024-02-04T10:39:29 | W6: =$T$6+3/24 -> 2024-02-04T11:39:29 | X6: =$T$6+4/24 -> 2024-02-04T12:39:29 | Y6: =$T$6+5/24 -> 2024-02-04T13:39:29 | Z6: =$T$6+6/24 -> 2024-02-04T14:39:29 | AA6: =$T$6+7/24 -> 2024-02-04T15:39:29 | AB6: =$T$6+8/24 -> 2024-02-04T16:39:29 | AC6: =$T$6+9/24 -> 2024-02-04T17:39:29 | AD6: =$T$6+10/24 -> 2024-02-04T18:39:29 | AE6: =$T$6+11/24 -> 2024-02-04T19:39:29 | AF6: =$T$6+12/24 -> 2024-02-04T20:39:29
B7: 04.02.2024 09:39:29 | H7: =$T$7-12/24+1 -> 20:39:29 | I7: =$T$7-11/24+1 -> 21:39:29 | J7: =$T$7-10/24+1 -> 22:39:29 | K7: =$T$7-9/24+1 -> 23:39:29 | L7: =$T$7-8/24+24/24 -> 1.027418981 | M7: =$T$7-7/24+24/24 -> 1.069085648 | N7: =$T$7-6/24+1 -> 1.110752315 | O7: =$T$7-5/24+1 -> 1.152418981 | P7: =$T$7-4/24+1 -> 1.194085648 | Q7: =$T$7-3/24+1 -> 1.235752315 | R7: =$T$7-2/24+1 -> 1.277418981 | S7: =$T$7-1/24+1 -> 1.319085648 | T7: =$D$15 -> 08:39:29 | U7: =$T$7+1/24+1 -> 1.402418981 | V7: =$T$7+2/24+1 -> 1.444085648 | W7: =$T$7+3/24+1 -> 1.485752315 | X7: =$T$7+4/24+1 -> 1.527418981 | Y7: =$T$7+5/24+1 -> 1.569085648 | Z7: =$T$7+6/24+1 -> 1.610752315 | AA7: =$T$7+7/24+1 -> 1.652418981 | AB7: =$T$7+8/24+1 -> 1.694085648 | AC7: =$T$7+9/24+1 -> 1.735752315 | AD7: =$T$7+10/24+1 -> 1.777418981 | AE7: =$T$7+11/24+1 -> 1.819085648 | AF7: =$T$7+12/24+1 -> 1.860752315
B9: UTC = MEZ/MESZ | D9: -1 | E9: h
B11: UTC (Greenwich)
B12: =B7+D9/24 -> 2024-02-04T08:39:29
B14: Datum | D14: =TODAY() -> 2024-02-04
B15: Zeit (UTC) | D15: =B7-D14+D9/24 -> 08:39:29 | I15: 1
B17: =B12 -> 2024-02-04T08:39:29
B19: Neujahr | D19: 2024-01-01
B21: Tage seit 01.01. | D21: =B7-D19 -> 34.40241898
B23: SONNE (senkrecht über)
B24: l | C24: d
B25: =(12-T7*24)*15 -> 50.12916667 | C25: =23.44*SIN(RADIANS(360/365*(D21+284))) -> -16.84974225
H26: -180 | I26: -165 | J26: -150 | K26: -135 | L26: -120 | M26: -105 | N26: -90 | O26: -75 | P26: -60 | Q26: -45 | R26: -30 | S26: -15 | T26: 0 | U26: 15 | V26: 30 | W26: 45 | X26: 60 | Y26: 75 | Z26: 90 | AA26: 105 | AB26: 120 | AC26: 135 | AD26: 150 | AE26: 165 | AF26: 180
H28: Karte: https://commons.wikimedia.org/wiki/File:Zeitzonen.jpg | Z28: Schulbiologiezentrum Hannover, Ingo Mennerich, April 2018 (Feb 2024)

Sheet Berechnung
D2: Tag-/Nachtgrenze, berechnet aus Deklination, Breitengrad und Tagbogen (Tageslänge)
D5: Deklination
D6: GRAD(ARCSIN(SIN(BOGENMASS(-23,44))*COS(BOGENMASS(360/365,24*(TAGE+10)+360/PI()*0,0167*SIN(BOGENMASS(360/365,24*(TAGE-2)))))))
D8: Halber Tagbogen
D9: GRAD(ARCCOS(SIN(BOGENMASS(-0,83))-(SIN(BOGENMASS(BREITE))*SIN(BOGENMASS(DEKLINATION))/(COS(BOGENMASS(BREITE))*COS(BOGENMASS(DEKLINATION))))))
D13: Deklination | E13: ='Weltzeit-Uhr'!$C$25 -> -16.84974225 | G13: Länge | H13: ='Weltzeit-Uhr'!B25 -> 50.12916667 | J13: SONNE (senkrecht über)
J14: l | K14: d
D15: Tageslänge | J15: ='Weltzeit-Uhr'!$B$25 -> 50.12916667 | K15: ='Weltzeit-Uhr'!$C$25 -> -16.84974225
D16: =2*DEGREES(ACOS(SIN(RADIANS(-0.83))-(SIN(RADIANS(E11))*SIN(RADIANS(E13))/(COS(RADIANS(E11))*COS(RADIANS(E13))))))/15 -> 12.11066667 | E16: =IF(E11>0,IFERROR(D16,24),IFERROR(D16,0)) -> 12.11066667 | F16: Stunden
J18: DIAGRAMM
J19: LÄNGE | K19: BREITE
B20: 90 | D20: =2*DEGREES(ACOS(SIN(RADIANS(-0.83))-(SIN(RADIANS(B20))*SIN(RADIANS($E$13))/(COS(RADIANS(B20))*COS(RADIANS($E$13))))))/15 ->  | F20: =IF(B20>0,IFERROR(D20,24),IFERROR(D20,0)) -> 24 | G20: =F20/2*-15+$H$13 -> -129.8708333 | H20: =IF(G20>180,G20-360,IF(G20<-180,G20+360,G20)) -> -129.8708333 | J20: =H20 -> -129.8708333 | K20: =B20 -> 90
B21: 88 | D21: =2*DEGREES(ACOS(SIN(RADIANS(-0.83))-(SIN(RADIANS(B21))*SIN(RADIANS($E$13))/(COS(RADIANS(B21))*COS(RADIANS($E$13))))))/15 ->  | F21: =IF(B21>0,IFERROR(D21,24),IFERROR(D21,0)) -> 24 | G21: =F21/2*-15+$H$13 -> -129.8708333 | H21: =IF(G21>180,G21-360,IF(G21<-180,G21+360,G21)) -> -129.8708333 | J21: -129.8708333 | K21: 88
B22: 86 | D22: =2*DEGREES(ACOS(SIN(RADIANS(-0.83))-(SIN(RADIANS(B22))*SIN(RADIANS($E$13))/(COS(RADIANS(B22))*COS(RADIANS($E$13))))))/15 ->  | F22: 24 | G22: -129.8708333 | H22: -129.8708333 | J22: -129.8708333 | K22: 86
B23: 84 | F23: 24 | G23: -129.8708333 | H23: -129.8708333 | J23: -129.8708333 | K23: 84
B24: 82 | F24: 24 | G24: -129.8708333 | H24: -129.8708333 | J24: -129.8708333 | K24: 82
B25: 80 | F25: 24 | G25: -129.8708333 | H25: -129.8708333 | J25: -129.8708333 | K25: 80
B26: 78 | F26: 24 | G26: -129.8708333 | H26: -129.8708333 | J26: -129.8708333 | K26: 78
B27: 76 | F27: 24 | G27: -129.8708333 | H27: -129.8708333 | J27: -129.8708333 | K27: 76
B28: 74 | F28: 24 | G28: -129.8708333 | H28: -129.8708333 | J28: -129.8708333 | K28: 74
B29: 72 | D29: 3.122242961 | F29: 3.122242961 | G29: 26.71234446 | H29: 26.71234446 | J29: 26.71234446 | K29: 72
B30: 70 | D30: 4.686900588 | F30: 4.686900588 | G30: 14.97741226 | H30: 14.97741226 | J30: 14.97741226 | K30: 70
B31: 68 | D31: 5.690880184 | F31: 5.690880184 | G31: 7.447565284 | H31: 7.447565284 | J31: 7.447565284 | K31: 68
B32: 66 | D32: 6.43456891 | F32: 6.43456891 | G32: 1.86989984 | H32: 1.86989984 | J32: 1.86989984 | K32: 66
B33: 64 | D33: 7.021941825 | F33: 7.021941825 | G33: -2.535397024 | H33: -2.535397024 | J33: -2.535397024 | K33: 64
B34: 62 | D34: 7.504125308 | F34: 7.504125308 | G34: -6.15177314 | H34: -6.15177314 | J34: -6.15177314 | K34: 62
B35: 60 | D35: 7.910668253 | F35: 7.910668253 | G35: -9.200845231 | H35: -9.200845231 | J35: -9.200845231 | K35: 60
B36: 58 | D36: 8.260361361 | F36: 8.260361361 | G36: -11.82354354 | H36: -11.82354354 | J36: -11.82354354 | K36: 58
B37: 56 | D37: 8.5659426 | F37: 8.5659426 | G37: -14.11540283 | H37: -14.11540283 | J37: -14.11540283 | K37: 56
B38: 54 | D38: 8.836454732 | F38: 8.836454732 | G38: -16.14424382 | H38: -16.14424382 | J38: -16.14424382 | K38: 54
B39: 52 | D39: 9.078547005 | F39: 9.078547005 | G39: -17.95993587 | H39: -17.95993587 | J39: -17.95993587 | K39: 52
B40: 50 | D40: 9.297246855 | F40: 9.297246855 | G40: -19.60018475 | H40: -19.60018475 | J40: -19.60018475 | K40: 50
B41: 48 | D41: 9.496443052 | F41: 9.496443052 | G41: -21.09415622 | H41: -21.09415622 | J41: -21.09415622 | K41: 48
B42: 46 | D42: 9.679201532 | F42: 9.679201532 | G42: -22.46484482 | H42: -22.46484482 | J42: -22.46484482 | K42: 46
B43: 44 | D43: 9.847979253 | F43: 9.847979253 | G43: -23.73067773 | H43: -23.73067773 | J43: -23.73067773 | K43: 44
B44: 42 | D44: 10.0047733 | F44: 10.0047733 | G44: -24.90663306 | H44: -24.90663306 | J44: -24.90663306 | K44: 42
B45: 40 | D45: 10.15122743 | F45: 10.15122743 | G45: -26.00503908 | H45: -26.00503908 | J45: -26.00503908 | K45: 40
B46: 38 | D46: 10.28870992 | F46: 10.28870992 | G46: -27.03615776 | H46: -27.03615776 | J46: -27.03615776 | K46: 38
B47: 36 | D47: 10.4183714 | F47: 10.4183714 | G47: -28.00861881 | H47: -28.00861881 | J47: -28.00861881 | K47: 36
B48: 34 | D48: 10.54118861 | F48: 10.54118861 | G48: -28.9297479 | H48: -28.9297479 | J48: -28.9297479 | K48: 34
B49: 32 | D49: 10.65799802 | F49: 10.65799802 | G49: -29.80581846 | H49: -29.80581846 | J49: -29.80581846 | K49: 32
B50: 30 | D50: 10.76952189 | F50: 10.76952189 | G50: -30.64224751 | H50: -30.64224751 | J50: -30.64224751 | K50: 30
B51: 28 | D51: 10.87638886 | F51: 10.87638886 | G51: -31.4437498 | H51: -31.4437498 | J51: -31.4437498 | K51: 28
B52: 26 | D52: 10.97915028 | F52: 10.97915028 | G52: =F52/2*-15+$H$13 -> -32.21446042 | H52: -32.21446042 | J52: -32.21446042 | K52: 26
B53: 24 | D53: 11.07829336 | F53: 11.07829336 | G53: -32.95803354 | H53: -32.95803354 | J53: -32.95803354 | K53: 24
B54: 22 | D54: 11.17425189 | F54: 11.17425189 | G54: -33.67772253 | H54: -33.67772253 | J54: -33.67772253 | K54: 22
B55: 20 | D55: 11.267415 | F55: 11.267415 | G55: -34.3764458 | H55: -34.3764458 | J55: -34.3764458 | K55: 20
B56: 18 | D56: 11.35813439 | F56: 11.35813439 | G56: -35.05684126 | H56: -35.05684126 | J56: -35.05684126 | K56: 18
B57: 16 | D57: 11.44673049 | F57: 11.44673049 | G57: -35.72131199 | H57: -35.72131199 | J57: -35.72131199 | K57: 16
B58: 14 | D58: 11.53349752 | F58: 11.53349752 | G58: -36.37206475 | H58: -36.37206475 | J58: -36.37206475 | K58: 14
B59: 12 | D59: 11.61870796 | F59: 11.61870796 | G59: -37.01114302 | H59: -37.01114302 | J59: -37.01114302 | K59: 12
B60: 10 | D60: 11.70261628 | F60: 11.70261628 | G60: -37.64045545 | H60: -37.64045545 | J60: -37.64045545 | K60: 10
B61: 8 | D61: 11.78546234 | F61: 11.78546234 | G61: -38.26180086 | H61: -38.26180086 | J61: -38.26180086 | K61: 8
B62: 6 | D62: 11.86747429 | F62: 11.86747429 | G62: -38.87689049 | H62: -38.87689049 | J62: -38.87689049 | K62: 6
B63: 4 | D63: 11.94887129 | F63: 11.94887129 | G63: -39.48736802 | H63: -39.48736802 | J63: -39.48736802 | K63: 4
B64: 2 | D64: 12.02986596 | F64: 12.02986596 | G64: -40.09482803 | H64: -40.09482803 | J64: -40.09482803 | K64: 2
B65: 0 | D65: 12.11066667 | F65: 12.11066667 | G65: -40.70083333 | H65: -40.70083333 | J65: -40.70083333 | K65: 0
B66: -2 | D66: 12.19147976 | F66: 12.19147976 | G66: -41.30693151 | H66: -41.30693151 | J66: -41.30693151 | K66: -2
B67: -4 | D67: 12.27251171 | F67: 12.27251171 | G67: -41.91467116 | H67: -41.91467116 | J67: -41.91467116 | K67: -4
B68: -6 | D68: 12.3539713 | F68: 12.3539713 | G68: -42.52561809 | H68: -42.52561809 | J68: -42.52561809 | K68: -6
B69: -8 | D69: 12.43607183 | F69: 12.43607183 | G69: -43.14137205 | H69: -43.14137205 | J69: -43.14137205 | K69: -8
B70: -10 | D70: 12.51903343 | F70: 12.51903343 | G70: -43.76358405 | H70: -43.76358405 | J70: -43.76358405 | K70: -10
B71: -12 | D71: 12.60308557 | F71: 12.60308557 | G71: -44.39397509 | H71: -44.39397509 | J71: -44.39397509 | K71: -12
B72: -14 | D72: 12.68846974 | F72: 12.68846974 | G72: -45.0343564 | H72: -45.0343564 | J72: -45.0343564 | K72: -14
B73: -16 | D73: 12.77544249 | F73: 12.77544249 | G73: -45.68665204 | H73: -45.68665204 | J73: -45.68665204 | K73: -16
B74: -18 | D74: 12.86427878 | F74: 12.86427878 | G74: -46.35292421 | H74: -46.35292421 | J74: -46.35292421 | K74: -18
B75: -20 | D75: 12.95527588 | F75: 12.95527588 | G75: -47.0354024 | H75: -47.0354024 | J75: -47.0354024 | K75: -20
B76: -22 | D76: 13.04875781 | F76: 13.04875781 | G76: -47.73651693 | H76: -47.73651693 | J76: -47.73651693 | K76: -22
B77: -24 | D77: 13.14508068 | F77: 13.14508068 | G77: -48.4589384 | H77: -48.4589384 | J77: -48.4589384 | K77: -24
B78: -26 | D78: 13.24463881 | F78: 13.24463881 | G78: -49.20562439 | H78: -49.20562439 | J78: -49.20562439 | K78: -26
B79: -28 | D79: 13.34787226 | F79: 13.34787226 | G79: -49.9798753 | H79: -49.9798753 | J79: -49.9798753 | K79: -28
B80: -30 | D80: 13.45527581 | F80: 13.45527581 | G80: -50.78540189 | H80: -50.78540189 | J80: -50.78540189 | K80: -30
B81: -32 | D81: 13.56740992 | F81: 13.56740992 | G81: -51.6264077 | H81: -51.6264077 | J81: -51.6264077 | K81: -32
B82: -34 | D82: 13.68491431 | F82: 13.68491431 | G82: -52.50769066 | H82: -52.50769066 | J82: -52.50769066 | K82: -34
B83: -36 | D83: 13.80852484 | F83: 13.80852484 | G83: -53.43476963 | H83: -53.43476963 | J83: -53.43476963 | K83: -36
B84: -38 | D84: 13.9390947 | F84: 13.9390947 | G84: =F84/2*-15+$H$13 -> -54.41404361 | H84: -54.41404361 | J84: -54.41404361 | K84: =B84 -> -38
B85: -40 | D85: 14.0776215 | F85: =IF(B85>0,IFERROR(D85,24),IFERROR(D85,0)) -> 14.0776215 | G85: -55.45299456 | H85: =IF(G85>180,G85-360,IF(G85<-180,G85+360,G85)) -> -55.45299456 | J85: =H85 -> -55.45299456 | K85: -40
B86: -42 | D86: =2*DEGREES(ACOS(SIN(RADIANS(-0.83))-(SIN(RADIANS(B86))*SIN(RADIANS($E$13))/(COS(RADIANS(B86))*COS(RADIANS($E$13))))))/15 -> 14.22528205 | F86: 14.22528205 | G86: -56.56044873 | H86: -56.56044873 | J86: -56.56044873 | K86: -42
B87: -44 | D87: 14.38347798 | F87: 14.38347798 | G87: -57.74691817 | H87: -57.74691817 | J87: -57.74691817 | K87: -44
B88: -46 | D88: 14.55389604 | F88: 14.55389604 | G88: -59.02505366 | H88: -59.02505366 | J88: -59.02505366 | K88: -46
B89: -48 | D89: 14.73858966 | F89: 14.73858966 | G89: -60.41025576 | H89: -60.41025576 | J89: -60.41025576 | K89: -48
B90: -50 | D90: 14.94009088 | F90: 14.94009088 | G90: -61.92151496 | H90: -61.92151496 | J90: -61.92151496 | K90: -50
B91: -52 | D91: 15.16156792 | F91: 15.16156792 | G91: -63.58259276 | H91: -63.58259276 | J91: -63.58259276 | K91: -52
B92: -54 | D92: 15.40705223 | F92: 15.40705223 | G92: -65.42372507 | H92: -65.42372507 | J92: -65.42372507 | K92: -54
B93: -56 | D93: 15.68177627 | F93: 15.68177627 | G93: -67.48415532 | H93: -67.48415532 | J93: -67.48415532 | K93: -56
B94: -58 | D94: 15.99269454 | F94: 15.99269454 | G94: -69.81604241 | H94: -69.81604241 | J94: -69.81604241 | K94: -58
B95: -60 | D95: 16.34932499 | F95: 16.34932499 | G95: -72.49077078 | H95: -72.49077078 | J95: -72.49077078 | K95: -60
B96: -62 | D96: 16.76518838 | F96: 16.76518838 | G96: -75.6097462 | H96: -75.6097462 | J96: -75.6097462 | K96: -62
B97: -64 | D97: 17.26046611 | F97: 17.26046611 | G97: -79.32432918 | H97: -79.32432918 | J97: -79.32432918 | K97: -64
B98: -66 | D98: 17.86745338 | F98: 17.86745338 | G98: -83.87673368 | H98: -83.87673368 | J98: -83.87673368 | K98: -66
B99: -68 | D99: 18.64364345 | F99: 18.64364345 | G99: -89.69815922 | H99: -89.69815922 | J99: -89.69815922 | K99: -68
B100: -70 | D100: 19.71252338 | F100: 19.71252338 | G100: -97.71475865 | H100: -97.71475865 | J100: -97.71475865 | K100: -70
B101: -72 | D101: 21.49238943 | F101: 21.49238943 | G101: -111.063754 | H101: -111.063754 | J101: -111.063754 | K101: -72
B102: -74 | F102: 0 | G102: 50.12916667 | H102: 50.12916667 | J102: 50.12916667 | K102: -74
B103: -76 | F103: 0 | G103: 50.12916667 | H103: 50.12916667 | J103: 50.12916667 | K103: -76
B104: -78 | F104: 0 | G104: 50.12916667 | H104: 50.12916667 | J104: 50.12916667 | K104: -78
B105: -80 | F105: 0 | G105: 50.12916667 | H105: 50.12916667 | J105: 50.12916667 | K105: -80
B106: -82 | F106: 0 | G106: 50.12916667 | H106: 50.12916667 | J106: 50.12916667 | K106: -82
B107: -84 | F107: 0 | G107: 50.12916667 | H107: 50.12916667 | J107: 50.12916667 | K107: -84
B108: -86 | F108: 0 | G108: 50.12916667 | H108: 50.12916667 | J108: 50.12916667 | K108: -86
B109: -88 | F109: 0 | G109: 50.12916667 | H109: 50.12916667 | J109: 50.12916667 | K109: -88
B110: -90 | F110: 0 | G110: 50.12916667 | H110: 50.12916667 | J110: 50.12916667 | K110: -90
B111: -88 | F111: 0 | G111: =F111/2*15+$H$13 -> 50.12916667 | H111: 50.12916667 | J111: 50.12916667 | K111: -88
B112: -86 | F112: 0 | G112: 50.12916667 | H112: 50.12916667 | J112: 50.12916667 | K112: -86
B113: -84 | F113: 0 | G113: 50.12916667 | H113: 50.12916667 | J113: 50.12916667 | K113: -84
B114: -82 | F114: 0 | G114: 50.12916667 | H114: 50.12916667 | J114: 50.12916667 | K114: -82
B115: -80 | F115: 0 | G115: 50.12916667 | H115: 50.12916667 | J115: 50.12916667 | K115: -80
B116: -78 | F116: 0 | G116: 50.12916667 | H116: 50.12916667 | J116: 50.12916667 | K116: -78
B117: -76 | F117: 0 | G117: 50.12916667 | H117: 50.12916667 | J117: 50.12916667 | K117: -76
B118: -74 | F118: 0 | G118: 50.12916667 | H118: 50.12916667 | J118: 50.12916667 | K118: -74
B119: -72 | D119: 21.49238943 | F119: 21.49238943 | G119: 211.3220874 | H119: -148.6779126 | J119: -148.6779126 | K119: -72
B120: -70 | D120: 19.71252338 | F120: 19.71252338 | G120: 197.973092 | H120: -162.026908 | J120: -162.026908 | K120: -70
B121: -68 | D121: 18.64364345 | F121: 18.64364345 | G121: 189.9564926 | H121: -170.0435074 | J121: -170.0435074 | K121: -68
B122: -66 | D122: 17.86745338 | F122: 17.86745338 | G122: 184.135067 | H122: -175.864933 | J122: -175.864933 | K122: -66
B123: -64 | D123: 17.26046611 | F123: 17.26046611 | G123: 179.5826625 | H123: 179.5826625 | J123: 179.5826625 | K123: -64
B124: -62 | D124: 16.76518838 | F124: 16.76518838 | G124: 175.8680795 | H124: 175.8680795 | J124: 175.8680795 | K124: -62
B125: -60 | D125: 16.34932499 | F125: 16.34932499 | G125: 172.7491041 | H125: 172.7491041 | J125: 172.7491041 | K125: -60
B126: -58 | D126: 15.99269454 | F126: 15.99269454 | G126: 170.0743757 | H126: 170.0743757 | J126: 170.0743757 | K126: -58
B127: -56 | D127: 15.68177627 | F127: 15.68177627 | G127: 167.7424887 | H127: 167.7424887 | J127: 167.7424887 | K127: -56
B128: -54 | D128: 15.40705223 | F128: 15.40705223 | G128: 165.6820584 | H128: 165.6820584 | J128: 165.6820584 | K128: -54
B129: -52 | D129: 15.16156792 | F129: 15.16156792 | G129: 163.8409261 | H129: 163.8409261 | J129: 163.8409261 | K129: -52
B130: -50 | D130: 14.94009088 | F130: 14.94009088 | G130: 162.1798483 | H130: 162.1798483 | J130: 162.1798483 | K130: -50
B131: -48 | D131: 14.73858966 | F131: 14.73858966 | G131: 160.6685891 | H131: 160.6685891 | J131: 160.6685891 | K131: -48
B132: -46 | D132: 14.55389604 | F132: 14.55389604 | G132: 159.283387 | H132: 159.283387 | J132: 159.283387 | K132: -46
B133: -44 | D133: 14.38347798 | F133: 14.38347798 | G133: 158.0052515 | H133: 158.0052515 | J133: 158.0052515 | K133: -44
B134: -42 | D134: 14.22528205 | F134: 14.22528205 | G134: 156.8187821 | H134: 156.8187821 | J134: 156.8187821 | K134: -42
B135: -40 | D135: 14.0776215 | F135: 14.0776215 | G135: 155.7113279 | H135: 155.7113279 | J135: 155.7113279 | K135: -40
B136: -38 | D136: 13.9390947 | F136: 13.9390947 | G136: 154.6723769 | H136: 154.6723769 | J136: 154.6723769 | K136: -38
B137: -36 | D137: 13.80852484 | F137: 13.80852484 | G137: 153.693103 | H137: 153.693103 | J137: 153.693103 | K137: -36
B138: -34 | D138: 13.68491431 | F138: 13.68491431 | G138: 152.766024 | H138: 152.766024 | J138: 152.766024 | K138: -34
B139: -32 | D139: 13.56740992 | F139: 13.56740992 | G139: 151.884741 | H139: 151.884741 | J139: 151.884741 | K139: -32
B140: -30 | D140: 13.45527581 | F140: 13.45527581 | G140: 151.0437352 | H140: 151.0437352 | J140: 151.0437352 | K140: -30
B141: -28 | D141: 13.34787226 | F141: 13.34787226 | G141: 150.2382086 | H141: 150.2382086 | J141: 150.2382086 | K141: -28
B142: -26 | D142: 13.24463881 | F142: 13.24463881 | G142: 149.4639577 | H142: 149.4639577 | J142: 149.4639577 | K142: -26
B143: -24 | D143: 13.14508068 | F143: 13.14508068 | G143: =F143/2*15+$H$13 -> 148.7172717 | H143: 148.7172717 | J143: 148.7172717 | K143: -24
B144: -22 | D144: 13.04875781 | F144: 13.04875781 | G144: 147.9948503 | H144: 147.9948503 | J144: 147.9948503 | K144: -22
B145: -20 | D145: 12.95527588 | F145: 12.95527588 | G145: 147.2937357 | H145: 147.2937357 | J145: 147.2937357 | K145: -20
B146: -18 | D146: 12.86427878 | F146: 12.86427878 | G146: 146.6112575 | H146: 146.6112575 | J146: 146.6112575 | K146: -18
B147: -16 | D147: 12.77544249 | F147: 12.77544249 | G147: 145.9449854 | H147: 145.9449854 | J147: 145.9449854 | K147: -16
B148: -14 | D148: 12.68846974 | F148: 12.68846974 | G148: 145.2926897 | H148: 145.2926897 | J148: 145.2926897 | K148: =B148 -> -14
B149: -12 | D149: 12.60308557 | F149: =IF(B149>0,IFERROR(D149,24),IFERROR(D149,0)) -> 12.60308557 | G149: 144.6523084 | H149: =IF(G149>180,G149-360,IF(G149<-180,G149+360,G149)) -> 144.6523084 | J149: =H149 -> 144.6523084 | K149: -12
B150: -10 | D150: =2*DEGREES(ACOS(SIN(RADIANS(-0.83))-(SIN(RADIANS(B150))*SIN(RADIANS($E$13))/(COS(RADIANS(B150))*COS(RADIANS($E$13))))))/15 -> 12.51903343 | F150: 12.51903343 | G150: 144.0219174 | H150: 144.0219174 | J150: 144.0219174 | K150: -10
B151: -8 | D151: 12.43607183 | F151: 12.43607183 | G151: 143.3997054 | H151: 143.3997054 | J151: 143.3997054 | K151: -8
B152: -6 | D152: 12.3539713 | F152: 12.3539713 | G152: 142.7839514 | H152: 142.7839514 | J152: 142.7839514 | K152: -6
B153: -4 | D153: 12.27251171 | F153: 12.27251171 | G153: 142.1730045 | H153: 142.1730045 | J153: 142.1730045 | K153: -4
B154: -2 | D154: 12.19147976 | F154: 12.19147976 | G154: 141.5652648 | H154: 141.5652648 | J154: 141.5652648 | K154: -2
B155: 0 | D155: 12.11066667 | F155: 12.11066667 | G155: 140.9591667 | H155: 140.9591667 | J155: 140.9591667 | K155: 0
B156: 2 | D156: 12.02986596 | F156: 12.02986596 | G156: 140.3531614 | H156: 140.3531614 | J156: 140.3531614 | K156: 2
B157: 4 | D157: 11.94887129 | F157: 11.94887129 | G157: 139.7457013 | H157: 139.7457013 | J157: 139.7457013 | K157: 4
B158: 6 | D158: 11.86747429 | F158: 11.86747429 | G158: 139.1352238 | H158: 139.1352238 | J158: 139.1352238 | K158: 6
B159: 8 | D159: 11.78546234 | F159: 11.78546234 | G159: 138.5201342 | H159: 138.5201342 | J159: 138.5201342 | K159: 8
B160: 10 | D160: 11.70261628 | F160: 11.70261628 | G160: 137.8987888 | H160: 137.8987888 | J160: 137.8987888 | K160: 10
B161: 12 | D161: 11.61870796 | F161: 11.61870796 | G161: 137.2694764 | H161: 137.2694764 | J161: 137.2694764 | K161: 12
B162: 14 | D162: 11.53349752 | F162: 11.53349752 | G162: 136.6303981 | H162: 136.6303981 | J162: 136.6303981 | K162: 14
B163: 16 | D163: 11.44673049 | F163: 11.44673049 | G163: 135.9796453 | H163: 135.9796453 | J163: 135.9796453 | K163: 16
B164: 18 | D164: 11.35813439 | F164: 11.35813439 | G164: 135.3151746 | H164: 135.3151746 | J164: 135.3151746 | K164: 18
B165: 20 | D165: 11.267415 | F165: 11.267415 | G165: 134.6347791 | H165: 134.6347791 | J165: 134.6347791 | K165: 20
B166: 22 | D166: 11.17425189 | F166: 11.17425189 | G166: 133.9360559 | H166: 133.9360559 | J166: 133.9360559 | K166: 22
B167: 24 | D167: 11.07829336 | F167: 11.07829336 | G167: 133.2163669 | H167: 133.2163669 | J167: 133.2163669 | K167: 24
B168: 26 | D168: 10.97915028 | F168: 10.97915028 | G168: 132.4727938 | H168: 132.4727938 | J168: 132.4727938 | K168: 26
B169: 28 | D169: 10.87638886 | F169: 10.87638886 | G169: 131.7020831 | H169: 131.7020831 | J169: 131.7020831 | K169: 28
B170: 30 | D170: 10.76952189 | F170: 10.76952189 | G170: 130.9005808 | H170: 130.9005808 | J170: 130.9005808 | K170: 30
B171: 32 | D171: 10.65799802 | F171: 10.65799802 | G171: 130.0641518 | H171: 130.0641518 | J171: 130.0641518 | K171: 32
B172: 34 | D172: 10.54118861 | F172: 10.54118861 | G172: 129.1880812 | H172: 129.1880812 | J172: 129.1880812 | K172: 34
B173: 36 | D173: 10.4183714 | F173: 10.4183714 | G173: 128.2669521 | H173: 128.2669521 | J173: 128.2669521 | K173: 36
B174: 38 | D174: 10.28870992 | F174: 10.28870992 | G174: 127.2944911 | H174: 127.2944911 | J174: 127.2944911 | K174: 38
B175: 40 | D175: 10.15122743 | F175: 10.15122743 | G175: =F175/2*15+$H$13 -> 126.2633724 | H175: 126.2633724 | J175: 126.2633724 | K175: 40
B176: 42 | D176: 10.0047733 | F176: 10.0047733 | G176: 125.1649664 | H176: 125.1649664 | J176: 125.1649664 | K176: 42
B177: 44 | D177: 9.847979253 | F177: 9.847979253 | G177: 123.9890111 | H177: 123.9890111 | J177: 123.9890111 | K177: 44
B178: 46 | D178: 9.679201532 | F178: 9.679201532 | G178: 122.7231782 | H178: 122.7231782 | J178: 122.7231782 | K178: 46
B179: 48 | D179: 9.496443052 | F179: 9.496443052 | G179: 121.3524896 | H179: 121.3524896 | J179: 121.3524896 | K179: 48
B180: 50 | D180: 9.297246855 | F180: 9.297246855 | G180: 119.8585181 | H180: 119.8585181 | J180: 119.8585181 | K180: 50
B181: 52 | D181: 9.078547005 | F181: 9.078547005 | G181: 118.2182692 | H181: 118.2182692 | J181: 118.2182692 | K181: 52
B182: 54 | D182: 8.836454732 | F182: 8.836454732 | G182: 116.4025772 | H182: 116.4025772 | J182: 116.4025772 | K182: 54
B183: 56 | D183: 8.5659426 | F183: 8.5659426 | G183: 114.3737362 | H183: 114.3737362 | J183: 114.3737362 | K183: 56
B184: 58 | D184: 8.260361361 | F184: 8.260361361 | G184: 112.0818769 | H184: 112.0818769 | J184: 112.0818769 | K184: 58
B185: 60 | D185: 7.910668253 | F185: 7.910668253 | G185: 109.4591786 | H185: 109.4591786 | J185: 109.4591786 | K185: 60
B186: 62 | D186: 7.504125308 | F186: 7.504125308 | G186: 106.4101065 | H186: 106.4101065 | J186: 106.4101065 | K186: 62
B187: 64 | D187: 7.021941825 | F187: 7.021941825 | G187: 102.7937304 | H187: 102.7937304 | J187: 102.7937304 | K187: 64
B188: 66 | D188: 6.43456891 | F188: 6.43456891 | G188: 98.38843349 | H188: 98.38843349 | J188: 98.38843349 | K188: 66
B189: 68 | D189: 5.690880184 | F189: 5.690880184 | G189: 92.81076805 | H189: 92.81076805 | J189: 92.81076805 | K189: 68
B190: 70 | D190: 4.686900588 | F190: 4.686900588 | G190: 85.28092108 | H190: 85.28092108 | J190: 85.28092108 | K190: 70
B191: 72 | D191: 3.122242961 | F191: 3.122242961 | G191: 73.54598887 | H191: 73.54598887 | J191: 73.54598887 | K191: 72
B192: 74 | F192: 24 | G192: 230.1291667 | H192: -129.8708333 | J192: -129.8708333 | K192: 74
B193: 76 | F193: 24 | G193: 230.1291667 | H193: -129.8708333 | J193: -129.8708333 | K193: 76
B194: 78 | F194: 24 | G194: =IFERROR(D194,F194/2*15+$H$13) -> 230.1291667 | H194: -129.8708333 | J194: -129.8708333 | K194: 78
B195: 80 | F195: 24 | G195: =F195/2*15+$H$13 -> 230.1291667 | H195: -129.8708333 | J195: -129.8708333 | K195: 80
B196: 82 | F196: 24 | G196: 230.1291667 | H196: -129.8708333 | J196: -129.8708333 | K196: 82
B197: 84 | F197: 24 | G197: 230.1291667 | H197: -129.8708333 | J197: -129.8708333 | K197: 84
B198: 86 | F198: 24 | G198: 230.1291667 | H198: -129.8708333 | J198: -129.8708333 | K198: 86
B199: 88 | F199: 24 | G199: 230.1291667 | H199: -129.8708333 | J199: -129.8708333 | K199: 88
B200: 90 | D200: =2*DEGREES(ACOS(SIN(RADIANS(-0.83))-(SIN(RADIANS(B200))*SIN(RADIANS($E$13))/(COS(RADIANS(B200))*COS(RADIANS($E$13))))))/15 ->  | F200: =IF(B200>0,IFERROR(D200,24),IFERROR(D200,0)) -> 24 | G200: 230.1291667 | H200: -129.8708333 | J200: -129.8708333 | K200: =B200 -> 90
